Workbook

Sheet Cameras
G2: Input | L2: Output 1 | Q2: Output2
B3: Camera ID | C3: Server | D3: Server Type | G3: Caption | H3: Category | I3: Action | J3: VideoInput | K3: Temp | L3: Category | M3: Caption | N3: GeviScope alias | O3: PTZ head | P3: speed | Q3: Category | R3: Caption | S3: G-Core alias | T3: PTZ head | U3: speed
B4: 101027 | C4: gscope-cdu-3 | D4: G-Core | E4: =B4 -> 101027 | G4: =CONCATENATE("GeVi ",I4,IF(ISNUMBER(FIND("Focus",I4))," 0_","_"),E4) -> GeVi PanLeft_101027 | H4: Telemetry | I4: PanLeft | J4: =E4 -> 101027 | K4: =IF(ISNUMBER(FIND("Focus",I4)),0,"") ->  | L4: GSC: Camera Control | M4: =CONCATENATE("GSC ",I4,IF(D4="G-Core",IF(ISNUMBER(FIND("Focus",I4))," 128",""),CONCATENATE(IF(ISNUMBER(FIND("Focus",I4))," 128_","_"),B4))) -> GSC PanLeft | N4: =IF(D4="G-Core","",C4) ->  | O4: =IF(D4="G-Core","",B4) ->  | P4: =IF(ISNUMBER(FIND("Focus",I4)),128,"") ->  | Q4: G-Core: Camera control | R4: =CONCATENATE("GNG ",I4,IF(D4="G-Core",CONCATENATE(IF(ISNUMBER(FIND("Focus",I4))," 128_","_"),E4),IF(ISNUMBER(FIND("Focus",I4))," 128",""))) -> GNG PanLeft_101027 | S4: =IF(D4="G-Core",C4,"") -> gscope-cdu-3 | T4: =IF(D4="G-Core",B4,"") -> 101027 | U4: =IF(ISNUMBER(FIND("Focus",I4)),128,"") -> 
B5: 101027 | C5: gscope-cdu-3 | D5: G-Core | E5: 101027 | G5: =CONCATENATE("GeVi ",I5,IF(ISNUMBER(FIND("Focus",I5))," 0_","_"),E5) -> GeVi PanRight_101027 | H5: Telemetry | I5: PanRight | J5: 101027 | K5: =IF(ISNUMBER(FIND("Focus",I5)),0,"") ->  | L5: GSC: Camera Control | M5: =CONCATENATE("GSC ",I5,IF(D5="G-Core",IF(ISNUMBER(FIND("Focus",I5))," 128",""),CONCATENATE(IF(ISNUMBER(FIND("Focus",I5))," 128_","_"),B5))) -> GSC PanRight | P5: =IF(ISNUMBER(FIND("Focus",I5)),128,"") ->  | Q5: G-Core: Camera control | R5: =CONCATENATE("GNG ",I5,IF(D5="G-Core",CONCATENATE(IF(ISNUMBER(FIND("Focus",I5))," 128_","_"),E5),IF(ISNUMBER(FIND("Focus",I5))," 128",""))) -> GNG PanRight_101027 | S5: gscope-cdu-3 | T5: 101027 | U5: =IF(ISNUMBER(FIND("Focus",I5)),128,"") -> 
B6: 101027 | C6: gscope-cdu-3 | D6: G-Core | E6: 101027 | G6: GeVi PanStop_101027 | H6: Telemetry | I6: PanStop | J6: 101027 | L6: GSC: Camera Control | M6: GSC PanStop | Q6: G-Core: Camera control | R6: GNG PanStop_101027 | S6: gscope-cdu-3 | T6: 101027
B7: 101027 | C7: gscope-cdu-3 | D7: G-Core | E7: 101027 | G7: GeVi TiltDown_101027 | H7: Telemetry | I7: TiltDown | J7: 101027 | L7: GSC: Camera Control | M7: GSC TiltDown | Q7: G-Core: Camera control | R7: GNG TiltDown_101027 | S7: gscope-cdu-3 | T7: 101027
B8: 101027 | C8: gscope-cdu-3 | D8: G-Core | E8: 101027 | G8: GeVi TiltUp_101027 | H8: Telemetry | I8: TiltUp | J8: 101027 | L8: GSC: Camera Control | M8: GSC TiltUp | Q8: G-Core: Camera control | R8: GNG TiltUp_101027 | S8: gscope-cdu-3 | T8: 101027
B9: 101027 | C9: gscope-cdu-3 | D9: G-Core | E9: 101027 | G9: GeVi TiltStop_101027 | H9: Telemetry | I9: TiltStop | J9: 101027 | L9: GSC: Camera Control | M9: GSC TiltStop | Q9: G-Core: Camera control | R9: GNG TiltStop_101027 | S9: gscope-cdu-3 | T9: 101027
B10: 101027 | C10: gscope-cdu-3 | D10: G-Core | E10: 101027 | G10: GeVi ZoomIn_101027 | H10: Telemetry | I10: ZoomIn | J10: 101027 | L10: GSC: Camera Control | M10: GSC ZoomIn | Q10: G-Core: Camera control | R10: GNG ZoomIn_101027 | S10: gscope-cdu-3 | T10: 101027
B11: 101027 | C11: gscope-cdu-3 | D11: G-Core | E11: 101027 | G11: GeVi ZoomOut_101027 | H11: Telemetry | I11: ZoomOut | J11: 101027 | L11: GSC: Camera Control | M11: GSC ZoomOut | Q11: G-Core: Camera control | R11: GNG ZoomOut_101027 | S11: gscope-cdu-3 | T11: 101027
B12: 101027 | C12: gscope-cdu-3 | D12: G-Core | E12: 101027 | G12: GeVi ZoomStop_101027 | H12: Telemetry | I12: ZoomStop | J12: 101027 | L12: GSC: Camera Control | M12: GSC ZoomStop | Q12: G-Core: Camera control | R12: GNG ZoomStop_101027 | S12: gscope-cdu-3 | T12: 101027
B13: 101027 | C13: gscope-cdu-3 | D13: G-Core | E13: 101027 | G13: GeVi FocusFar 0_101027 | H13: Telemetry | I13: FocusFar | J13: 101027 | K13: 0 | L13: GSC: Camera Control | M13: GSC FocusFar 128 | P13: 128 | Q13: G-Core: Camera control | R13: GNG FocusFar 128_101027 | S13: gscope-cdu-3 | T13: 101027 | U13: 128
B14: 101027 | C14: gscope-cdu-3 | D14: G-Core | E14: 101027 | G14: GeVi FocusNear 0_101027 | H14: Telemetry | I14: FocusNear | J14: 101027 | K14: 0 | L14: GSC: Camera Control | M14: GSC FocusNear 128 | P14: 128 | Q14: G-Core: Camera control | R14: GNG FocusNear 128_101027 | S14: gscope-cdu-3 | T14: 101027 | U14: 128
B15: 101027 | C15: gscope-cdu-3 | D15: G-Core | E15: 101027 | G15: GeVi FocusStop 0_101027 | H15: Telemetry | I15: FocusStop | J15: 101027 | K15: 0 | L15: GSC: Camera Control | M15: GSC FocusStop 128 | P15: 128 | Q15: G-Core: Camera control | R15: GNG FocusStop 128_101027 | S15: gscope-cdu-3 | T15: 101027 | U15: 128
B16: 101027 | C16: gscope-cdu-3 | D16: G-Core | E16: 101027 | G16: GeVi DefaultPosCalUp_101027 | H16: Telemetry | I16: DefaultPosCalUp | J16: 101027 | L16: GSC: Camera Control | M16: GSC DefaultPosCalUp | Q16: G-Core: Camera control | R16: GNG DefaultPosCalUp_101027 | S16: gscope-cdu-3 | T16: 101027
B17: 101027 | C17: gscope-cdu-3 | D17: G-Core | E17: 101027 | G17: GeVi DefaultPosClear_101027 | H17: Telemetry | I17: DefaultPosClear | J17: 101027 | L17: GSC: Camera Control | M17: GSC DefaultPosClear | Q17: G-Core: Camera control | R17: GNG DefaultPosClear_101027 | S17: gscope-cdu-3 | T17: 101027
B18: 101027 | C18: gscope-cdu-3 | D18: G-Core | E18: 101027 | G18: GeVi DefaultPosSave_101027 | H18: Telemetry | I18: DefaultPosSave | J18: 101027 | L18: GSC: Camera Control | M18: GSC DefaultPosSave | Q18: G-Core: Camera control | R18: GNG DefaultPosSave_101027 | S18: gscope-cdu-3 | T18: 101027
B19: 101027 | C19: gscope-cdu-3 | D19: G-Core | E19: 101027 | G19: GeVi IrisClose_101027 | H19: Telemetry | I19: IrisClose | J19: 101027 | L19: GSC: Camera Control | M19: GSC IrisClose | Q19: G-Core: Camera control | R19: GNG IrisClose_101027 | S19: gscope-cdu-3 | T19: 101027
B20: 101027 | C20: gscope-cdu-3 | D20: G-Core | E20: 101027 | G20: GeVi IrisOpen_101027 | H20: Telemetry | I20: IrisOpen | J20: 101027 | L20: GSC: Camera Control | M20: GSC IrisOpen | Q20: G-Core: Camera control | R20: GNG IrisOpen_101027 | S20: gscope-cdu-3 | T20: 101027
B21: 101027 | C21: gscope-cdu-3 | D21: G-Core | E21: 101027 | G21: GeVi IrisStop_101027 | H21: Telemetry | I21: IrisStop | J21: 101027 | L21: GSC: Camera Control | M21: GSC IrisStop | Q21: G-Core: Camera control | R21: GNG IrisStop_101027 | S21: gscope-cdu-3 | T21: 101027
B22: 101030 | C22: gscope-cdu-1 | D22: G-Core | E22: 101030 | G22: GeVi PanLeft_101030 | H22: Telemetry | I22: PanLeft | J22: 101030 | L22: GSC: Camera Control | M22: GSC PanLeft | Q22: G-Core: Camera control | R22: GNG PanLeft_101030 | S22: gscope-cdu-1 | T22: 101030
B23: 101030 | C23: gscope-cdu-1 | D23: G-Core | E23: 101030 | G23: GeVi PanRight_101030 | H23: Telemetry | I23: PanRight | J23: 101030 | L23: GSC: Camera Control | M23: GSC PanRight | Q23: G-Core: Camera control | R23: GNG PanRight_101030 | S23: gscope-cdu-1 | T23: 101030
B24: 101030 | C24: gscope-cdu-1 | D24: G-Core | E24: 101030 | G24: GeVi PanStop_101030 | H24: Telemetry | I24: PanStop | J24: 101030 | L24: GSC: Camera Control | M24: GSC PanStop | Q24: G-Core: Camera control | R24: GNG PanStop_101030 | S24: gscope-cdu-1 | T24: 101030
B25: 101030 | C25: gscope-cdu-1 | D25: G-Core | E25: 101030 | G25: GeVi TiltDown_101030 | H25: Telemetry | I25: TiltDown | J25: 101030 | L25: GSC: Camera Control | M25: GSC TiltDown | Q25: G-Core: Camera control | R25: GNG TiltDown_101030 | S25: gscope-cdu-1 | T25: 101030
B26: 101030 | C26: gscope-cdu-1 | D26: G-Core | E26: 101030 | G26: GeVi TiltUp_101030 | H26: Telemetry | I26: TiltUp | J26: 101030 | L26: GSC: Camera Control | M26: GSC TiltUp | Q26: G-Core: Camera control | R26: GNG TiltUp_101030 | S26: gscope-cdu-1 | T26: 101030
B27: 101030 | C27: gscope-cdu-1 | D27: G-Core | E27: 101030 | G27: GeVi TiltStop_101030 | H27: Telemetry | I27: TiltStop | J27: 101030 | L27: GSC: Camera Control | M27: GSC TiltStop | Q27: G-Core: Camera control | R27: GNG TiltStop_101030 | S27: gscope-cdu-1 | T27: 101030
B28: 101030 | C28: gscope-cdu-1 | D28: G-Core | E28: 101030 | G28: GeVi ZoomIn_101030 | H28: Telemetry | I28: ZoomIn | J28: 101030 | L28: GSC: Camera Control | M28: GSC ZoomIn | Q28: G-Core: Camera control | R28: GNG ZoomIn_101030 | S28: gscope-cdu-1 | T28: 101030
B29: 101030 | C29: gscope-cdu-1 | D29: G-Core | E29: 101030 | G29: GeVi ZoomOut_101030 | H29: Telemetry | I29: ZoomOut | J29: 101030 | L29: GSC: Camera Control | M29: GSC ZoomOut | Q29: G-Core: Camera control | R29: GNG ZoomOut_101030 | S29: gscope-cdu-1 | T29: 101030
B30: 101030 | C30: gscope-cdu-1 | D30: G-Core | E30: 101030 | G30: GeVi ZoomStop_101030 | H30: Telemetry | I30: ZoomStop | J30: 101030 | L30: GSC: Camera Control | M30: GSC ZoomStop | Q30: G-Core: Camera control | R30: GNG ZoomStop_101030 | S30: gscope-cdu-1 | T30: 101030
B31: 101030 | C31: gscope-cdu-1 | D31: G-Core | E31: 101030 | G31: GeVi FocusFar 0_101030 | H31: Telemetry | I31: FocusFar | J31: 101030 | K31: 0 | L31: GSC: Camera Control | M31: GSC FocusFar 128 | P31: 128 | Q31: G-Core: Camera control | R31: GNG FocusFar 128_101030 | S31: gscope-cdu-1 | T31: 101030 | U31: 128
B32: 101030 | C32: gscope-cdu-1 | D32: G-Core | E32: 101030 | G32: GeVi FocusNear 0_101030 | H32: Telemetry | I32: FocusNear | J32: 101030 | K32: 0 | L32: GSC: Camera Control | M32: GSC FocusNear 128 | P32: 128 | Q32: G-Core: Camera control | R32: GNG FocusNear 128_101030 | S32: gscope-cdu-1 | T32: 101030 | U32: 128
B33: 101030 | C33: gscope-cdu-1 | D33: G-Core | E33: 101030 | G33: GeVi FocusStop 0_101030 | H33: Telemetry | I33: FocusStop | J33: 101030 | K33: 0 | L33: GSC: Camera Control | M33: GSC FocusStop 128 | P33: 128 | Q33: G-Core: Camera control | R33: GNG FocusStop 128_101030 | S33: gscope-cdu-1 | T33: 101030 | U33: 128
B34: 101030 | C34: gscope-cdu-1 | D34: G-Core | E34: 101030 | G34: GeVi DefaultPosCalUp_101030 | H34: Telemetry | I34: DefaultPosCalUp | J34: 101030 | L34: GSC: Camera Control | M34: GSC DefaultPosCalUp | Q34: G-Core: Camera control | R34: GNG DefaultPosCalUp_101030 | S34: gscope-cdu-1 | T34: 101030
B35: 101030 | C35: gscope-cdu-1 | D35: G-Core | E35: 101030 | G35: GeVi DefaultPosClear_101030 | H35: Telemetry | I35: DefaultPosClear | J35: 101030 | L35: GSC: Camera Control | M35: GSC DefaultPosClear | Q35: G-Core: Camera control | R35: GNG DefaultPosClear_101030 | S35: gscope-cdu-1 | T35: 101030
B36: 101030 | C36: gscope-cdu-1 | D36: G-Core | E36: 101030 | G36: GeVi DefaultPosSave_101030 | H36: Telemetry | I36: DefaultPosSave | J36: 101030 | L36: GSC: Camera Control | M36: GSC DefaultPosSave | Q36: G-Core: Camera control | R36: GNG DefaultPosSave_101030 | S36: gscope-cdu-1 | T36: 101030
B37: 101030 | C37: gscope-cdu-1 | D37: G-Core | E37: 101030 | G37: GeVi IrisClose_101030 | H37: Telemetry | I37: IrisClose | J37: 101030 | L37: GSC: Camera Control | M37: GSC IrisClose | Q37: G-Core: Camera control | R37: GNG IrisClose_101030 | S37: gscope-cdu-1 | T37: 101030
B38: 101030 | C38: gscope-cdu-1 | D38: G-Core | E38: 101030 | G38: GeVi IrisOpen_101030 | H38: Telemetry | I38: IrisOpen | J38: 101030 | L38: GSC: Camera Control | M38: GSC IrisOpen | Q38: G-Core: Camera control | R38: GNG IrisOpen_101030 | S38: gscope-cdu-1 | T38: 101030
B39: 101030 | C39: gscope-cdu-1 | D39: G-Core | E39: 101030 | G39: GeVi IrisStop_101030 | H39: Telemetry | I39: IrisStop | J39: 101030 | L39: GSC: Camera Control | M39: GSC IrisStop | Q39: G-Core: Camera control | R39: GNG IrisStop_101030 | S39: gscope-cdu-1 | T39: 101030
B40: 101031 | C40: gscope-cdu-1 | D40: G-Core | E40: 101031 | G40: GeVi PanLeft_101031 | H40: Telemetry | I40: PanLeft | J40: 101031 | L40: GSC: Camera Control | M40: GSC PanLeft | Q40: G-Core: Camera control | R40: GNG PanLeft_101031 | S40: gscope-cdu-1 | T40: 101031
B41: 101031 | C41: gscope-cdu-1 | D41: G-Core | E41: 101031 | G41: GeVi PanRight_101031 | H41: Telemetry | I41: PanRight | J41: 101031 | L41: GSC: Camera Control | M41: GSC PanRight | Q41: G-Core: Camera control | R41: GNG PanRight_101031 | S41: gscope-cdu-1 | T41: 101031
B42: 101031 | C42: gscope-cdu-1 | D42: G-Core | E42: 101031 | G42: GeVi PanStop_101031 | H42: Telemetry | I42: PanStop | J42: 101031 | L42: GSC: Camera Control | M42: GSC PanStop | Q42: G-Core: Camera control | R42: GNG PanStop_101031 | S42: gscope-cdu-1 | T42: 101031
B43: 101031 | C43: gscope-cdu-1 | D43: G-Core | E43: 101031 | G43: GeVi TiltDown_101031 | H43: Telemetry | I43: TiltDown | J43: 101031 | L43: GSC: Camera Control | M43: GSC TiltDown | Q43: G-Core: Camera control | R43: GNG TiltDown_101031 | S43: gscope-cdu-1 | T43: 101031
B44: 101031 | C44: gscope-cdu-1 | D44: G-Core | E44: 101031 | G44: GeVi TiltUp_101031 | H44: Telemetry | I44: TiltUp | J44: 101031 | L44: GSC: Camera Control | M44: GSC TiltUp | Q44: G-Core: Camera control | R44: GNG TiltUp_101031 | S44: gscope-cdu-1 | T44: 101031
B45: 101031 | C45: gscope-cdu-1 | D45: G-Core | E45: 101031 | G45: GeVi TiltStop_101031 | H45: Telemetry | I45: TiltStop | J45: 101031 | L45: GSC: Camera Control | M45: GSC TiltStop | Q45: G-Core: Camera control | R45: GNG TiltStop_101031 | S45: gscope-cdu-1 | T45: 101031
B46: 101031 | C46: gscope-cdu-1 | D46: G-Core | E46: 101031 | G46: GeVi ZoomIn_101031 | H46: Telemetry | I46: ZoomIn | J46: 101031 | L46: GSC: Camera Control | M46: GSC ZoomIn | Q46: G-Core: Camera control | R46: GNG ZoomIn_101031 | S46: gscope-cdu-1 | T46: 101031
B47: 101031 | C47: gscope-cdu-1 | D47: G-Core | E47: 101031 | G47: GeVi ZoomOut_101031 | H47: Telemetry | I47: ZoomOut | J47: 101031 | L47: GSC: Camera Control | M47: GSC ZoomOut | Q47: G-Core: Camera control | R47: GNG ZoomOut_101031 | S47: gscope-cdu-1 | T47: 101031
B48: 101031 | C48: gscope-cdu-1 | D48: G-Core | E48: 101031 | G48: GeVi ZoomStop_101031 | H48: Telemetry | I48: ZoomStop | J48: 101031 | L48: GSC: Camera Control | M48: GSC ZoomStop | Q48: G-Core: Camera control | R48: GNG ZoomStop_101031 | S48: gscope-cdu-1 | T48: 101031
B49: 101031 | C49: gscope-cdu-1 | D49: G-Core | E49: 101031 | G49: GeVi FocusFar 0_101031 | H49: Telemetry | I49: FocusFar | J49: 101031 | K49: 0 | L49: GSC: Camera Control | M49: GSC FocusFar 128 | P49: 128 | Q49: G-Core: Camera control | R49: GNG FocusFar 128_101031 | S49: gscope-cdu-1 | T49: 101031 | U49: 128
B50: 101031 | C50: gscope-cdu-1 | D50: G-Core | E50: 101031 | G50: GeVi FocusNear 0_101031 | H50: Telemetry | I50: FocusNear | J50: 101031 | K50: 0 | L50: GSC: Camera Control | M50: GSC FocusNear 128 | P50: 128 | Q50: G-Core: Camera control | R50: GNG FocusNear 128_101031 | S50: gscope-cdu-1 | T50: 101031 | U50: 128
B51: 101031 | C51: gscope-cdu-1 | D51: G-Core | E51: 101031 | G51: GeVi FocusStop 0_101031 | H51: Telemetry | I51: FocusStop | J51: 101031 | K51: 0 | L51: GSC: Camera Control | M51: GSC FocusStop 128 | P51: 128 | Q51: G-Core: Camera control | R51: GNG FocusStop 128_101031 | S51: gscope-cdu-1 | T51: 101031 | U51: 128
B52: 101031 | C52: gscope-cdu-1 | D52: G-Core | E52: 101031 | G52: GeVi DefaultPosCalUp_101031 | H52: Telemetry | I52: DefaultPosCalUp | J52: 101031 | L52: GSC: Camera Control | M52: GSC DefaultPosCalUp | Q52: G-Core: Camera control | R52: GNG DefaultPosCalUp_101031 | S52: gscope-cdu-1 | T52: 101031
B53: 101031 | C53: gscope-cdu-1 | D53: G-Core | E53: 101031 | G53: GeVi DefaultPosClear_101031 | H53: Telemetry | I53: DefaultPosClear | J53: 101031 | L53: GSC: Camera Control | M53: GSC DefaultPosClear | Q53: G-Core: Camera control | R53: GNG DefaultPosClear_101031 | S53: gscope-cdu-1 | T53: 101031
B54: 101031 | C54: gscope-cdu-1 | D54: G-Core | E54: 101031 | G54: GeVi DefaultPosSave_101031 | H54: Telemetry | I54: DefaultPosSave | J54: 101031 | L54: GSC: Camera Control | M54: GSC DefaultPosSave | Q54: G-Core: Camera control | R54: GNG DefaultPosSave_101031 | S54: gscope-cdu-1 | T54: 101031
B55: 101031 | C55: gscope-cdu-1 | D55: G-Core | E55: 101031 | G55: GeVi IrisClose_101031 | H55: Telemetry | I55: IrisClose | J55: 101031 | L55: GSC: Camera Control | M55: GSC IrisClose | Q55: G-Core: Camera control | R55: GNG IrisClose_101031 | S55: gscope-cdu-1 | T55: 101031
B56: 101031 | C56: gscope-cdu-1 | D56: G-Core | E56: 101031 | G56: GeVi IrisOpen_101031 | H56: Telemetry | I56: IrisOpen | J56: 101031 | L56: GSC: Camera Control | M56: GSC IrisOpen | Q56: G-Core: Camera control | R56: GNG IrisOpen_101031 | S56: gscope-cdu-1 | T56: 101031
B57: 101031 | C57: gscope-cdu-1 | D57: G-Core | E57: 101031 | G57: GeVi IrisStop_101031 | H57: Telemetry | I57: IrisStop | J57: 101031 | L57: GSC: Camera Control | M57: GSC IrisStop | Q57: G-Core: Camera control | R57: GNG IrisStop_101031 | S57: gscope-cdu-1 | T57: 101031
B58: 101032 | C58: gscope-cdu-1 | D58: G-Core | E58: 101032 | G58: GeVi PanLeft_101032 | H58: Telemetry | I58: PanLeft | J58: 101032 | L58: GSC: Camera Control | M58: GSC PanLeft | Q58: G-Core: Camera control | R58: GNG PanLeft_101032 | S58: gscope-cdu-1 | T58: 101032
B59: 101032 | C59: gscope-cdu-1 | D59: G-Core | E59: 101032 | G59: GeVi PanRight_101032 | H59: Telemetry | I59: PanRight | J59: 101032 | L59: GSC: Camera Control | M59: GSC PanRight | Q59: G-Core: Camera control | R59: GNG PanRight_101032 | S59: gscope-cdu-1 | T59: 101032
B60: 101032 | C60: gscope-cdu-1 | D60: G-Core | E60: 101032 | G60: GeVi PanStop_101032 | H60: Telemetry | I60: PanStop | J60: 101032 | L60: GSC: Camera Control | M60: GSC PanStop | Q60: G-Core: Camera control | R60: GNG PanStop_101032 | S60: gscope-cdu-1 | T60: 101032
B61: 101032 | C61: gscope-cdu-1 | D61: G-Core | E61: 101032 | G61: GeVi TiltDown_101032 | H61: Telemetry | I61: TiltDown | J61: 101032 | L61: GSC: Camera Control | M61: GSC TiltDown | Q61: G-Core: Camera control | R61: GNG TiltDown_101032 | S61: gscope-cdu-1 | T61: 101032
B62: 101032 | C62: gscope-cdu-1 | D62: G-Core | E62: 101032 | G62: GeVi TiltUp_101032 | H62: Telemetry | I62: TiltUp | J62: 101032 | L62: GSC: Camera Control | M62: GSC TiltUp | Q62: G-Core: Camera control | R62: GNG TiltUp_101032 | S62: gscope-cdu-1 | T62: 101032
B63: 101032 | C63: gscope-cdu-1 | D63: G-Core | E63: 101032 | G63: GeVi TiltStop_101032 | H63: Telemetry | I63: TiltStop | J63: 101032 | L63: GSC: Camera Control | M63: GSC TiltStop | Q63: G-Core: Camera control | R63: GNG TiltStop_101032 | S63: gscope-cdu-1 | T63: 101032
B64: 101032 | C64: gscope-cdu-1 | D64: G-Core | E64: 101032 | G64: GeVi ZoomIn_101032 | H64: Telemetry | I64: ZoomIn | J64: 101032 | L64: GSC: Camera Control | M64: GSC ZoomIn | Q64: G-Core: Camera control | R64: GNG ZoomIn_101032 | S64: gscope-cdu-1 | T64: 101032
B65: 101032 | C65: gscope-cdu-1 | D65: G-Core | E65: 101032 | G65: GeVi ZoomOut_101032 | H65: Telemetry | I65: ZoomOut | J65: 101032 | L65: GSC: Camera Control | M65: GSC ZoomOut | Q65: G-Core: Camera control | R65: GNG ZoomOut_101032 | S65: gscope-cdu-1 | T65: 101032
B66: 101032 | C66: gscope-cdu-1 | D66: G-Core | E66: 101032 | G66: GeVi ZoomStop_101032 | H66: Telemetry | I66: ZoomStop | J66: 101032 | L66: GSC: Camera Control | M66: GSC ZoomStop | Q66: G-Core: Camera control | R66: GNG ZoomStop_101032 | S66: gscope-cdu-1 | T66: 101032
B67: 101032 | C67: gscope-cdu-1 | D67: G-Core | E67: 101032 | G67: GeVi FocusFar 0_101032 | H67: Telemetry | I67: FocusFar | J67: 101032 | K67: 0 | L67: GSC: Camera Control | M67: GSC FocusFar 128 | P67: 128 | Q67: G-Core: Camera control | R67: GNG FocusFar 128_101032 | S67: gscope-cdu-1 | T67: 101032 | U67: 128
B68: 101032 | C68: gscope-cdu-1 | D68: G-Core | E68: =B68 -> 101032 | G68: GeVi FocusNear 0_101032 | H68: Telemetry | I68: FocusNear | J68: =E68 -> 101032 | K68: 0 | L68: GSC: Camera Control | M68: GSC FocusNear 128 | N68: =IF(D68="G-Core","",C68) ->  | O68: =IF(D68="G-Core","",B68) ->  | P68: 128 | Q68: G-Core: Camera control | R68: GNG FocusNear 128_101032 | S68: =IF(D68="G-Core",C68,"") -> gscope-cdu-1 | T68: =IF(D68="G-Core",B68,"") -> 101032 | U68: 128
B69: 101032 | C69: gscope-cdu-1 | D69: G-Core | E69: 101032 | G69: =CONCATENATE("GeVi ",I69,IF(ISNUMBER(FIND("Focus",I69))," 0_","_"),E69) -> GeVi FocusStop 0_101032 | H69: Telemetry | I69: FocusStop | J69: 101032 | K69: =IF(ISNUMBER(FIND("Focus",I69)),0,"") -> 0 | L69: GSC: Camera Control | M69: =CONCATENATE("GSC ",I69,IF(D69="G-Core",IF(ISNUMBER(FIND("Focus",I69))," 128",""),CONCATENATE(IF(ISNUMBER(FIND("Focus",I69))," 128_","_"),B69))) -> GSC FocusStop 128 | P69: =IF(ISNUMBER(FIND("Focus",I69)),128,"") -> 128 | Q69: G-Core: Camera control | R69: =CONCATENATE("GNG ",I69,IF(D69="G-Core",CONCATENATE(IF(ISNUMBER(FIND("Focus",I69))," 128_","_"),E69),IF(ISNUMBER(FIND("Focus",I69))," 128",""))) -> GNG FocusStop 128_101032 | S69: gscope-cdu-1 | T69: 101032 | U69: =IF(ISNUMBER(FIND("Focus",I69)),128,"") -> 128
B70: 101032 | C70: gscope-cdu-1 | D70: G-Core | E70: 101032 | G70: GeVi DefaultPosCalUp_101032 | H70: Telemetry | I70: DefaultPosCalUp | J70: 101032 | L70: GSC: Camera Control | M70: GSC DefaultPosCalUp | Q70: G-Core: Camera control | R70: GNG DefaultPosCalUp_101032 | S70: gscope-cdu-1 | T70: 101032
B71: 101032 | C71: gscope-cdu-1 | D71: G-Core | E71: 101032 | G71: GeVi DefaultPosClear_101032 | H71: Telemetry | I71: DefaultPosClear | J71: 101032 | L71: GSC: Camera Control | M71: GSC DefaultPosClear | Q71: G-Core: Camera control | R71: GNG DefaultPosClear_101032 | S71: gscope-cdu-1 | T71: 101032
B72: 101032 | C72: gscope-cdu-1 | D72: G-Core | E72: 101032 | G72: GeVi DefaultPosSave_101032 | H72: Telemetry | I72: DefaultPosSave | J72: 101032 | L72: GSC: Camera Control | M72: GSC DefaultPosSave | Q72: G-Core: Camera control | R72: GNG DefaultPosSave_101032 | S72: gscope-cdu-1 | T72: 101032
B73: 101032 | C73: gscope-cdu-1 | D73: G-Core | E73: 101032 | G73: GeVi IrisClose_101032 | H73: Telemetry | I73: IrisClose | J73: 101032 | L73: GSC: Camera Control | M73: GSC IrisClose | Q73: G-Core: Camera control | R73: GNG IrisClose_101032 | S73: gscope-cdu-1 | T73: 101032
B74: 101032 | C74: gscope-cdu-1 | D74: G-Core | E74: 101032 | G74: GeVi IrisOpen_101032 | H74: Telemetry | I74: IrisOpen | J74: 101032 | L74: GSC: Camera Control | M74: GSC IrisOpen | Q74: G-Core: Camera control | R74: GNG IrisOpen_101032 | S74: gscope-cdu-1 | T74: 101032
B75: 101032 | C75: gscope-cdu-1 | D75: G-Core | E75: 101032 | G75: GeVi IrisStop_101032 | H75: Telemetry | I75: IrisStop | J75: 101032 | L75: GSC: Camera Control | M75: GSC IrisStop | Q75: G-Core: Camera control | R75: GNG IrisStop_101032 | S75: gscope-cdu-1 | T75: 101032
B76: 101033 | C76: gscope-cdu-1 | D76: G-Core | E76: 101033 | G76: GeVi PanLeft_101033 | H76: Telemetry | I76: PanLeft | J76: 101033 | L76: GSC: Camera Control | M76: GSC PanLeft | Q76: G-Core: Camera control | R76: GNG PanLeft_101033 | S76: gscope-cdu-1 | T76: 101033
B77: 101033 | C77: gscope-cdu-1 | D77: G-Core | E77: 101033 | G77: GeVi PanRight_101033 | H77: Telemetry | I77: PanRight | J77: 101033 | L77: GSC: Camera Control | M77: GSC PanRight | Q77: G-Core: Camera control | R77: GNG PanRight_101033 | S77: gscope-cdu-1 | T77: 101033
B78: 101033 | C78: gscope-cdu-1 | D78: G-Core | E78: 101033 | G78: GeVi PanStop_101033 | H78: Telemetry | I78: PanStop | J78: 101033 | L78: GSC: Camera Control | M78: GSC PanStop | Q78: G-Core: Camera control | R78: GNG PanStop_101033 | S78: gscope-cdu-1 | T78: 101033
B79: 101033 | C79: gscope-cdu-1 | D79: G-Core | E79: 101033 | G79: GeVi TiltDown_101033 | H79: Telemetry | I79: TiltDown | J79: 101033 | L79: GSC: Camera Control | M79: GSC TiltDown | Q79: G-Core: Camera control | R79: GNG TiltDown_101033 | S79: gscope-cdu-1 | T79: 101033
B80: 101033 | C80: gscope-cdu-1 | D80: G-Core | E80: 101033 | G80: GeVi TiltUp_101033 | H80: Telemetry | I80: TiltUp | J80: 101033 | L80: GSC: Camera Control | M80: GSC TiltUp | Q80: G-Core: Camera control | R80: GNG TiltUp_101033 | S80: gscope-cdu-1 | T80: 101033
B81: 101033 | C81: gscope-cdu-1 | D81: G-Core | E81: 101033 | G81: GeVi TiltStop_101033 | H81: Telemetry | I81: TiltStop | J81: 101033 | L81: GSC: Camera Control | M81: GSC TiltStop | Q81: G-Core: Camera control | R81: GNG TiltStop_101033 | S81: gscope-cdu-1 | T81: 101033
B82: 101033 | C82: gscope-cdu-1 | D82: G-Core | E82: 101033 | G82: GeVi ZoomIn_101033 | H82: Telemetry | I82: ZoomIn | J82: 101033 | L82: GSC: Camera Control | M82: GSC ZoomIn | Q82: G-Core: Camera control | R82: GNG ZoomIn_101033 | S82: gscope-cdu-1 | T82: 101033
B83: 101033 | C83: gscope-cdu-1 | D83: G-Core | E83: 101033 | G83: GeVi ZoomOut_101033 | H83: Telemetry | I83: ZoomOut | J83: 101033 | L83: GSC: Camera Control | M83: GSC ZoomOut | Q83: G-Core: Camera control | R83: GNG ZoomOut_101033 | S83: gscope-cdu-1 | T83: 101033
B84: 101033 | C84: gscope-cdu-1 | D84: G-Core | E84: 101033 | G84: GeVi ZoomStop_101033 | H84: Telemetry | I84: ZoomStop | J84: 101033 | L84: GSC: Camera Control | M84: GSC ZoomStop | Q84: G-Core: Camera control | R84: GNG ZoomStop_101033 | S84: gscope-cdu-1 | T84: 101033
B85: 101033 | C85: gscope-cdu-1 | D85: G-Core | E85: 101033 | G85: GeVi FocusFar 0_101033 | H85: Telemetry | I85: FocusFar | J85: 101033 | K85: 0 | L85: GSC: Camera Control | M85: GSC FocusFar 128 | P85: 128 | Q85: G-Core: Camera control | R85: GNG FocusFar 128_101033 | S85: gscope-cdu-1 | T85: 101033 | U85: 128
B86: 101033 | C86: gscope-cdu-1 | D86: G-Core | E86: 101033 | G86: GeVi FocusNear 0_101033 | H86: Telemetry | I86: FocusNear | J86: 101033 | K86: 0 | L86: GSC: Camera Control | M86: GSC FocusNear 128 | P86: 128 | Q86: G-Core: Camera control | R86: GNG FocusNear 128_101033 | S86: gscope-cdu-1 | T86: 101033 | U86: 128
B87: 101033 | C87: gscope-cdu-1 | D87: G-Core | E87: 101033 | G87: GeVi FocusStop 0_101033 | H87: Telemetry | I87: FocusStop | J87: 101033 | K87: 0 | L87: GSC: Camera Control | M87: GSC FocusStop 128 | P87: 128 | Q87: G-Core: Camera control | R87: GNG FocusStop 128_101033 | S87: gscope-cdu-1 | T87: 101033 | U87: 128
B88: 101033 | C88: gscope-cdu-1 | D88: G-Core | E88: 101033 | G88: GeVi DefaultPosCalUp_101033 | H88: Telemetry | I88: DefaultPosCalUp | J88: 101033 | L88: GSC: Camera Control | M88: GSC DefaultPosCalUp | Q88: G-Core: Camera control | R88: GNG DefaultPosCalUp_101033 | S88: gscope-cdu-1 | T88: 101033
B89: 101033 | C89: gscope-cdu-1 | D89: G-Core | E89: 101033 | G89: GeVi DefaultPosClear_101033 | H89: Telemetry | I89: DefaultPosClear | J89: 101033 | L89: GSC: Camera Control | M89: GSC DefaultPosClear | Q89: G-Core: Camera control | R89: GNG DefaultPosClear_101033 | S89: gscope-cdu-1 | T89: 101033
B90: 101033 | C90: gscope-cdu-1 | D90: G-Core | E90: 101033 | G90: GeVi DefaultPosSave_101033 | H90: Telemetry | I90: DefaultPosSave | J90: 101033 | L90: GSC: Camera Control | M90: GSC DefaultPosSave | Q90: G-Core: Camera control | R90: GNG DefaultPosSave_101033 | S90: gscope-cdu-1 | T90: 101033
B91: 101033 | C91: gscope-cdu-1 | D91: G-Core | E91: 101033 | G91: GeVi IrisClose_101033 | H91: Telemetry | I91: IrisClose | J91: 101033 | L91: GSC: Camera Control | M91: GSC IrisClose | Q91: G-Core: Camera control | R91: GNG IrisClose_101033 | S91: gscope-cdu-1 | T91: 101033
B92: 101033 | C92: gscope-cdu-1 | D92: G-Core | E92: 101033 | G92: GeVi IrisOpen_101033 | H92: Telemetry | I92: IrisOpen | J92: 101033 | L92: GSC: Camera Control | M92: GSC IrisOpen | Q92: G-Core: Camera control | R92: GNG IrisOpen_101033 | S92: gscope-cdu-1 | T92: 101033
B93: 101033 | C93: gscope-cdu-1 | D93: G-Core | E93: 101033 | G93: GeVi IrisStop_101033 | H93: Telemetry | I93: IrisStop | J93: 101033 | L93: GSC: Camera Control | M93: GSC IrisStop | Q93: G-Core: Camera control | R93: GNG IrisStop_101033 | S93: gscope-cdu-1 | T93: 101033
B94: 101034 | C94: gscope-cdu-1 | D94: G-Core | E94: 101034 | G94: GeVi PanLeft_101034 | H94: Telemetry | I94: PanLeft | J94: 101034 | L94: GSC: Camera Control | M94: GSC PanLeft | Q94: G-Core: Camera control | R94: GNG PanLeft_101034 | S94: gscope-cdu-1 | T94: 101034
B95: 101034 | C95: gscope-cdu-1 | D95: G-Core | E95: 101034 | G95: GeVi PanRight_101034 | H95: Telemetry | I95: PanRight | J95: 101034 | L95: GSC: Camera Control | M95: GSC PanRight | Q95: G-Core: Camera control | R95: GNG PanRight_101034 | S95: gscope-cdu-1 | T95: 101034
B96: 101034 | C96: gscope-cdu-1 | D96: G-Core | E96: 101034 | G96: GeVi PanStop_101034 | H96: Telemetry | I96: PanStop | J96: 101034 | L96: GSC: Camera Control | M96: GSC PanStop | Q96: G-Core: Camera control | R96: GNG PanStop_101034 | S96: gscope-cdu-1 | T96: 101034
B97: 101034 | C97: gscope-cdu-1 | D97: G-Core | E97: 101034 | G97: GeVi TiltDown_101034 | H97: Telemetry | I97: TiltDown | J97: 101034 | L97: GSC: Camera Control | M97: GSC TiltDown | Q97: G-Core: Camera control | R97: GNG TiltDown_101034 | S97: gscope-cdu-1 | T97: 101034
B98: 101034 | C98: gscope-cdu-1 | D98: G-Core | E98: 101034 | G98: GeVi TiltUp_101034 | H98: Telemetry | I98: TiltUp | J98: 101034 | L98: GSC: Camera Control | M98: GSC TiltUp | Q98: G-Core: Camera control | R98: GNG TiltUp_101034 | S98: gscope-cdu-1 | T98: 101034
B99: 101034 | C99: gscope-cdu-1 | D99: G-Core | E99: 101034 | G99: GeVi TiltStop_101034 | H99: Telemetry | I99: TiltStop | J99: 101034 | L99: GSC: Camera Control | M99: GSC TiltStop | Q99: G-Core: Camera control | R99: GNG TiltStop_101034 | S99: gscope-cdu-1 | T99: 101034
B100: 101034 | C100: gscope-cdu-1 | D100: G-Core | E100: 101034 | G100: GeVi ZoomIn_101034 | H100: Telemetry | I100: ZoomIn | J100: 101034 | L100: GSC: Camera Control | M100: GSC ZoomIn | Q100: G-Core: Camera control | R100: GNG ZoomIn_101034 | S100: gscope-cdu-1 | T100: 101034
B101: 101034 | C101: gscope-cdu-1 | D101: G-Core | E101: 101034 | G101: GeVi ZoomOut_101034 | H101: Telemetry | I101: ZoomOut | J101: 101034 | L101: GSC: Camera Control | M101: GSC ZoomOut | Q101: G-Core: Camera control | R101: GNG ZoomOut_101034 | S101: gscope-cdu-1 | T101: 101034
B102: 101034 | C102: gscope-cdu-1 | D102: G-Core | E102: 101034 | G102: GeVi ZoomStop_101034 | H102: Telemetry | I102: ZoomStop | J102: 101034 | L102: GSC: Camera Control | M102: GSC ZoomStop | Q102: G-Core: Camera control | R102: GNG ZoomStop_101034 | S102: gscope-cdu-1 | T102: 101034
B103: 101034 | C103: gscope-cdu-1 | D103: G-Core | E103: 101034 | G103: GeVi FocusFar 0_101034 | H103: Telemetry | I103: FocusFar | J103: 101034 | K103: 0 | L103: GSC: Camera Control | M103: GSC FocusFar 128 | P103: 128 | Q103: G-Core: Camera control | R103: GNG FocusFar 128_101034 | S103: gscope-cdu-1 | T103: 101034 | U103: 128
B104: 101034 | C104: gscope-cdu-1 | D104: G-Core | E104: 101034 | G104: GeVi FocusNear 0_101034 | H104: Telemetry | I104: FocusNear | J104: 101034 | K104: 0 | L104: GSC: Camera Control | M104: GSC FocusNear 128 | P104: 128 | Q104: G-Core: Camera control | R104: GNG FocusNear 128_101034 | S104: gscope-cdu-1 | T104: 101034 | U104: 128
B105: 101034 | C105: gscope-cdu-1 | D105: G-Core | E105: 101034 | G105: GeVi FocusStop 0_101034 | H105: Telemetry | I105: FocusStop | J105: 101034 | K105: 0 | L105: GSC: Camera Control | M105: GSC FocusStop 128 | P105: 128 | Q105: G-Core: Camera control | R105: GNG FocusStop 128_101034 | S105: gscope-cdu-1 | T105: 101034 | U105: 128
B106: 101034 | C106: gscope-cdu-1 | D106: G-Core | E106: 101034 | G106: GeVi DefaultPosCalUp_101034 | H106: Telemetry | I106: DefaultPosCalUp | J106: 101034 | L106: GSC: Camera Control | M106: GSC DefaultPosCalUp | Q106: G-Core: Camera control | R106: GNG DefaultPosCalUp_101034 | S106: gscope-cdu-1 | T106: 101034
B107: 101034 | C107: gscope-cdu-1 | D107: G-Core | E107: 101034 | G107: GeVi DefaultPosClear_101034 | H107: Telemetry | I107: DefaultPosClear | J107: 101034 | L107: GSC: Camera Control | M107: GSC DefaultPosClear | Q107: G-Core: Camera control | R107: GNG DefaultPosClear_101034 | S107: gscope-cdu-1 | T107: 101034
B108: 101034 | C108: gscope-cdu-1 | D108: G-Core | E108: 101034 | G108: GeVi DefaultPosSave_101034 | H108: Telemetry | I108: DefaultPosSave | J108: 101034 | L108: GSC: Camera Control | M108: GSC DefaultPosSave | Q108: G-Core: Camera control | R108: GNG DefaultPosSave_101034 | S108: gscope-cdu-1 | T108: 101034
B109: 101034 | C109: gscope-cdu-1 | D109: G-Core | E109: 101034 | G109: GeVi IrisClose_101034 | H109: Telemetry | I109: IrisClose | J109: 101034 | L109: GSC: Camera Control | M109: GSC IrisClose | Q109: G-Core: Camera control | R109: GNG IrisClose_101034 | S109: gscope-cdu-1 | T109: 101034
B110: 101034 | C110: gscope-cdu-1 | D110: G-Core | E110: 101034 | G110: GeVi IrisOpen_101034 | H110: Telemetry | I110: IrisOpen | J110: 101034 | L110: GSC: Camera Control | M110: GSC IrisOpen | Q110: G-Core: Camera control | R110: GNG IrisOpen_101034 | S110: gscope-cdu-1 | T110: 101034
B111: 101034 | C111: gscope-cdu-1 | D111: G-Core | E111: 101034 | G111: GeVi IrisStop_101034 | H111: Telemetry | I111: IrisStop | J111: 101034 | L111: GSC: Camera Control | M111: GSC IrisStop | Q111: G-Core: Camera control | R111: GNG IrisStop_101034 | S111: gscope-cdu-1 | T111: 101034
B112: 101035 | C112: gscope-cdu-1 | D112: G-Core | E112: 101035 | G112: GeVi PanLeft_101035 | H112: Telemetry | I112: PanLeft | J112: 101035 | L112: GSC: Camera Control | M112: GSC PanLeft | Q112: G-Core: Camera control | R112: GNG PanLeft_101035 | S112: gscope-cdu-1 | T112: 101035
B113: 101035 | C113: gscope-cdu-1 | D113: G-Core | E113: 101035 | G113: GeVi PanRight_101035 | H113: Telemetry | I113: PanRight | J113: 101035 | L113: GSC: Camera Control | M113: GSC PanRight | Q113: G-Core: Camera control | R113: GNG PanRight_101035 | S113: gscope-cdu-1 | T113: 101035
B114: 101035 | C114: gscope-cdu-1 | D114: G-Core | E114: 101035 | G114: GeVi PanStop_101035 | H114: Telemetry | I114: PanStop | J114: 101035 | L114: GSC: Camera Control | M114: GSC PanStop | Q114: G-Core: Camera control | R114: GNG PanStop_101035 | S114: gscope-cdu-1 | T114: 101035
B115: 101035 | C115: gscope-cdu-1 | D115: G-Core | E115: 101035 | G115: GeVi TiltDown_101035 | H115: Telemetry | I115: TiltDown | J115: 101035 | L115: GSC: Camera Control | M115: GSC TiltDown | Q115: G-Core: Camera control | R115: GNG TiltDown_101035 | S115: gscope-cdu-1 | T115: 101035
B116: 101035 | C116: gscope-cdu-1 | D116: G-Core | E116: 101035 | G116: GeVi TiltUp_101035 | H116: Telemetry | I116: TiltUp | J116: 101035 | L116: GSC: Camera Control | M116: GSC TiltUp | Q116: G-Core: Camera control | R116: GNG TiltUp_101035 | S116: gscope-cdu-1 | T116: 101035
B117: 101035 | C117: gscope-cdu-1 | D117: G-Core | E117: 101035 | G117: GeVi TiltStop_101035 | H117: Telemetry | I117: TiltStop | J117: 101035 | L117: GSC: Camera Control | M117: GSC TiltStop | Q117: G-Core: Camera control | R117: GNG TiltStop_101035 | S117: gscope-cdu-1 | T117: 101035
B118: 101035 | C118: gscope-cdu-1 | D118: G-Core | E118: 101035 | G118: GeVi ZoomIn_101035 | H118: Telemetry | I118: ZoomIn | J118: 101035 | L118: GSC: Camera Control | M118: GSC ZoomIn | Q118: G-Core: Camera control | R118: GNG ZoomIn_101035 | S118: gscope-cdu-1 | T118: 101035
B119: 101035 | C119: gscope-cdu-1 | D119: G-Core | E119: 101035 | G119: GeVi ZoomOut_101035 | H119: Telemetry | I119: ZoomOut | J119: 101035 | L119: GSC: Camera Control | M119: GSC ZoomOut | Q119: G-Core: Camera control | R119: GNG ZoomOut_101035 | S119: gscope-cdu-1 | T119: 101035
B120: 101035 | C120: gscope-cdu-1 | D120: G-Core | E120: 101035 | G120: GeVi ZoomStop_101035 | H120: Telemetry | I120: ZoomStop | J120: 101035 | L120: GSC: Camera Control | M120: GSC ZoomStop | Q120: G-Core: Camera control | R120: GNG ZoomStop_101035 | S120: gscope-cdu-1 | T120: 101035
B121: 101035 | C121: gscope-cdu-1 | D121: G-Core | E121: 101035 | G121: GeVi FocusFar 0_101035 | H121: Telemetry | I121: FocusFar | J121: 101035 | K121: 0 | L121: GSC: Camera Control | M121: GSC FocusFar 128 | P121: 128 | Q121: G-Core: Camera control | R121: GNG FocusFar 128_101035 | S121: gscope-cdu-1 | T121: 101035 | U121: 128
B122: 101035 | C122: gscope-cdu-1 | D122: G-Core | E122: 101035 | G122: GeVi FocusNear 0_101035 | H122: Telemetry | I122: FocusNear | J122: 101035 | K122: 0 | L122: GSC: Camera Control | M122: GSC FocusNear 128 | P122: 128 | Q122: G-Core: Camera control | R122: GNG FocusNear 128_101035 | S122: gscope-cdu-1 | T122: 101035 | U122: 128
B123: 101035 | C123: gscope-cdu-1 | D123: G-Core | E123: 101035 | G123: GeVi FocusStop 0_101035 | H123: Telemetry | I123: FocusStop | J123: 101035 | K123: 0 | L123: GSC: Camera Control | M123: GSC FocusStop 128 | P123: 128 | Q123: G-Core: Camera control | R123: GNG FocusStop 128_101035 | S123: gscope-cdu-1 | T123: 101035 | U123: 128
B124: 101035 | C124: gscope-cdu-1 | D124: G-Core | E124: 101035 | G124: GeVi DefaultPosCalUp_101035 | H124: Telemetry | I124: DefaultPosCalUp | J124: 101035 | L124: GSC: Camera Control | M124: GSC DefaultPosCalUp | Q124: G-Core: Camera control | R124: GNG DefaultPosCalUp_101035 | S124: gscope-cdu-1 | T124: 101035
B125: 101035 | C125: gscope-cdu-1 | D125: G-Core | E125: 101035 | G125: GeVi DefaultPosClear_101035 | H125: Telemetry | I125: DefaultPosClear | J125: 101035 | L125: GSC: Camera Control | M125: GSC DefaultPosClear | Q125: G-Core: Camera control | R125: GNG DefaultPosClear_101035 | S125: gscope-cdu-1 | T125: 101035
B126: 101035 | C126: gscope-cdu-1 | D126: G-Core | E126: 101035 | G126: GeVi DefaultPosSave_101035 | H126: Telemetry | I126: DefaultPosSave | J126: 101035 | L126: GSC: Camera Control | M126: GSC DefaultPosSave | Q126: G-Core: Camera control | R126: GNG DefaultPosSave_101035 | S126: gscope-cdu-1 | T126: 101035
B127: 101035 | C127: gscope-cdu-1 | D127: G-Core | E127: 101035 | G127: GeVi IrisClose_101035 | H127: Telemetry | I127: IrisClose | J127: 101035 | L127: GSC: Camera Control | M127: GSC IrisClose | Q127: G-Core: Camera control | R127: GNG IrisClose_101035 | S127: gscope-cdu-1 | T127: 101035
B128: 101035 | C128: gscope-cdu-1 | D128: G-Core | E128: 101035 | G128: GeVi IrisOpen_101035 | H128: Telemetry | I128: IrisOpen | J128: 101035 | L128: GSC: Camera Control | M128: GSC IrisOpen | Q128: G-Core: Camera control | R128: GNG IrisOpen_101035 | S128: gscope-cdu-1 | T128: 101035
B129: 101035 | C129: gscope-cdu-1 | D129: G-Core | E129: 101035 | G129: GeVi IrisStop_101035 | H129: Telemetry | I129: IrisStop | J129: 101035 | L129: GSC: Camera Control | M129: GSC IrisStop | Q129: G-Core: Camera control | R129: GNG IrisStop_101035 | S129: gscope-cdu-1 | T129: 101035
B130: 101036 | C130: gscope-cdu-3 | D130: G-Core | E130: 101036 | G130: GeVi PanLeft_101036 | H130: Telemetry | I130: PanLeft | J130: 101036 | L130: GSC: Camera Control | M130: GSC PanLeft | Q130: G-Core: Camera control | R130: GNG PanLeft_101036 | S130: gscope-cdu-3 | T130: 101036
B131: 101036 | C131: gscope-cdu-3 | D131: G-Core | E131: 101036 | G131: GeVi PanRight_101036 | H131: Telemetry | I131: PanRight | J131: 101036 | L131: GSC: Camera Control | M131: GSC PanRight | Q131: G-Core: Camera control | R131: GNG PanRight_101036 | S131: gscope-cdu-3 | T131: 101036
B132: 101036 | C132: gscope-cdu-3 | D132: G-Core | E132: =B132 -> 101036 | G132: GeVi PanStop_101036 | H132: Telemetry | I132: PanStop | J132: =E132 -> 101036 | L132: GSC: Camera Control | M132: GSC PanStop | N132: =IF(D132="G-Core","",C132) ->  | O132: =IF(D132="G-Core","",B132) ->  | Q132: G-Core: Camera control | R132: GNG PanStop_101036 | S132: =IF(D132="G-Core",C132,"") -> gscope-cdu-3 | T132: =IF(D132="G-Core",B132,"") -> 101036
B133: 101036 | C133: gscope-cdu-3 | D133: G-Core | E133: 101036 | G133: =CONCATENATE("GeVi ",I133,IF(ISNUMBER(FIND("Focus",I133))," 0_","_"),E133) -> GeVi TiltDown_101036 | H133: Telemetry | I133: TiltDown | J133: 101036 | K133: =IF(ISNUMBER(FIND("Focus",I133)),0,"") ->  | L133: GSC: Camera Control | M133: =CONCATENATE("GSC ",I133,IF(D133="G-Core",IF(ISNUMBER(FIND("Focus",I133))," 128",""),CONCATENATE(IF(ISNUMBER(FIND("Focus",I133))," 128_","_"),B133))) -> GSC TiltDown | P133: =IF(ISNUMBER(FIND("Focus",I133)),128,"") ->  | Q133: G-Core: Camera control | R133: =CONCATENATE("GNG ",I133,IF(D133="G-Core",CONCATENATE(IF(ISNUMBER(FIND("Focus",I133))," 128_","_"),E133),IF(ISNUMBER(FIND("Focus",I133))," 128",""))) -> GNG TiltDown_101036 | S133: gscope-cdu-3 | T133: 101036 | U133: =IF(ISNUMBER(FIND("Focus",I133)),128,"") -> 
B134: 101036 | C134: gscope-cdu-3 | D134: G-Core | E134: 101036 | G134: GeVi TiltUp_101036 | H134: Telemetry | I134: TiltUp | J134: 101036 | L134: GSC: Camera Control | M134: GSC TiltUp | Q134: G-Core: Camera control | R134: GNG TiltUp_101036 | S134: gscope-cdu-3 | T134: 101036
B135: 101036 | C135: gscope-cdu-3 | D135: G-Core | E135: 101036 | G135: GeVi TiltStop_101036 | H135: Telemetry | I135: TiltStop | J135: 101036 | L135: GSC: Camera Control | M135: GSC TiltStop | Q135: G-Core: Camera control | R135: GNG TiltStop_101036 | S135: gscope-cdu-3 | T135: 101036
B136: 101036 | C136: gscope-cdu-3 | D136: G-Core | E136: 101036 | G136: GeVi ZoomIn_101036 | H136: Telemetry | I136: ZoomIn | J136: 101036 | L136: GSC: Camera Control | M136: GSC ZoomIn | Q136: G-Core: Camera control | R136: GNG ZoomIn_101036 | S136: gscope-cdu-3 | T136: 101036
B137: 101036 | C137: gscope-cdu-3 | D137: G-Core | E137: 101036 | G137: GeVi ZoomOut_101036 | H137: Telemetry | I137: ZoomOut | J137: 101036 | L137: GSC: Camera Control | M137: GSC ZoomOut | Q137: G-Core: Camera control | R137: GNG ZoomOut_101036 | S137: gscope-cdu-3 | T137: 101036
B138: 101036 | C138: gscope-cdu-3 | D138: G-Core | E138: 101036 | G138: GeVi ZoomStop_101036 | H138: Telemetry | I138: ZoomStop | J138: 101036 | L138: GSC: Camera Control | M138: GSC ZoomStop | Q138: G-Core: Camera control | R138: GNG ZoomStop_101036 | S138: gscope-cdu-3 | T138: 101036
B139: 101036 | C139: gscope-cdu-3 | D139: G-Core | E139: 101036 | G139: GeVi FocusFar 0_101036 | H139: Telemetry | I139: FocusFar | J139: 101036 | K139: 0 | L139: GSC: Camera Control | M139: GSC FocusFar 128 | P139: 128 | Q139: G-Core: Camera control | R139: GNG FocusFar 128_101036 | S139: gscope-cdu-3 | T139: 101036 | U139: 128
B140: 101036 | C140: gscope-cdu-3 | D140: G-Core | E140: 101036 | G140: GeVi FocusNear 0_101036 | H140: Telemetry | I140: FocusNear | J140: 101036 | K140: 0 | L140: GSC: Camera Control | M140: GSC FocusNear 128 | P140: 128 | Q140: G-Core: Camera control | R140: GNG FocusNear 128_101036 | S140: gscope-cdu-3 | T140: 101036 | U140: 128
B141: 101036 | C141: gscope-cdu-3 | D141: G-Core | E141: 101036 | G141: GeVi FocusStop 0_101036 | H141: Telemetry | I141: FocusStop | J141: 101036 | K141: 0 | L141: GSC: Camera Control | M141: GSC FocusStop 128 | P141: 128 | Q141: G-Core: Camera control | R141: GNG FocusStop 128_101036 | S141: gscope-cdu-3 | T141: 101036 | U141: 128
B142: 101036 | C142: gscope-cdu-3 | D142: G-Core | E142: 101036 | G142: GeVi DefaultPosCalUp_101036 | H142: Telemetry | I142: DefaultPosCalUp | J142: 101036 | L142: GSC: Camera Control | M142: GSC DefaultPosCalUp | Q142: G-Core: Camera control | R142: GNG DefaultPosCalUp_101036 | S142: gscope-cdu-3 | T142: 101036
B143: 101036 | C143: gscope-cdu-3 | D143: G-Core | E143: 101036 | G143: GeVi DefaultPosClear_101036 | H143: Telemetry | I143: DefaultPosClear | J143: 101036 | L143: GSC: Camera Control | M143: GSC DefaultPosClear | Q143: G-Core: Camera control | R143: GNG DefaultPosClear_101036 | S143: gscope-cdu-3 | T143: 101036
B144: 101036 | C144: gscope-cdu-3 | D144: G-Core | E144: 101036 | G144: GeVi DefaultPosSave_101036 | H144: Telemetry | I144: DefaultPosSave | J144: 101036 | L144: GSC: Camera Control | M144: GSC DefaultPosSave | Q144: G-Core: Camera control | R144: GNG DefaultPosSave_101036 | S144: gscope-cdu-3 | T144: 101036
B145: 101036 | C145: gscope-cdu-3 | D145: G-Core | E145: 101036 | G145: GeVi IrisClose_101036 | H145: Telemetry | I145: IrisClose | J145: 101036 | L145: GSC: Camera Control | M145: GSC IrisClose | Q145: G-Core: Camera control | R145: GNG IrisClose_101036 | S145: gscope-cdu-3 | T145: 101036
B146: 101036 | C146: gscope-cdu-3 | D146: G-Core | E146: 101036 | G146: GeVi IrisOpen_101036 | H146: Telemetry | I146: IrisOpen | J146: 101036 | L146: GSC: Camera Control | M146: GSC IrisOpen | Q146: G-Core: Camera control | R146: GNG IrisOpen_101036 | S146: gscope-cdu-3 | T146: 101036
B147: 101036 | C147: gscope-cdu-3 | D147: G-Core | E147: 101036 | G147: GeVi IrisStop_101036 | H147: Telemetry | I147: IrisStop | J147: 101036 | L147: GSC: Camera Control | M147: GSC IrisStop | Q147: G-Core: Camera control | R147: GNG IrisStop_101036 | S147: gscope-cdu-3 | T147: 101036
B148: 101037 | C148: gscope-cdu-1 | D148: G-Core | E148: 101037 | G148: GeVi PanLeft_101037 | H148: Telemetry | I148: PanLeft | J148: 101037 | L148: GSC: Camera Control | M148: GSC PanLeft | Q148: G-Core: Camera control | R148: GNG PanLeft_101037 | S148: gscope-cdu-1 | T148: 101037
B149: 101037 | C149: gscope-cdu-1 | D149: G-Core | E149: 101037 | G149: GeVi PanRight_101037 | H149: Telemetry | I149: PanRight | J149: 101037 | L149: GSC: Camera Control | M149: GSC PanRight | Q149: G-Core: Camera control | R149: GNG PanRight_101037 | S149: gscope-cdu-1 | T149: 101037
B150: 101037 | C150: gscope-cdu-1 | D150: G-Core | E150: 101037 | G150: GeVi PanStop_101037 | H150: Telemetry | I150: PanStop | J150: 101037 | L150: GSC: Camera Control | M150: GSC PanStop | Q150: G-Core: Camera control | R150: GNG PanStop_101037 | S150: gscope-cdu-1 | T150: 101037
B151: 101037 | C151: gscope-cdu-1 | D151: G-Core | E151: 101037 | G151: GeVi TiltDown_101037 | H151: Telemetry | I151: TiltDown | J151: 101037 | L151: GSC: Camera Control | M151: GSC TiltDown | Q151: G-Core: Camera control | R151: GNG TiltDown_101037 | S151: gscope-cdu-1 | T151: 101037
B152: 101037 | C152: gscope-cdu-1 | D152: G-Core | E152: 101037 | G152: GeVi TiltUp_101037 | H152: Telemetry | I152: TiltUp | J152: 101037 | L152: GSC: Camera Control | M152: GSC TiltUp | Q152: G-Core: Camera control | R152: GNG TiltUp_101037 | S152: gscope-cdu-1 | T152: 101037
B153: 101037 | C153: gscope-cdu-1 | D153: G-Core | E153: 101037 | G153: GeVi TiltStop_101037 | H153: Telemetry | I153: TiltStop | J153: 101037 | L153: GSC: Camera Control | M153: GSC TiltStop | Q153: G-Core: Camera control | R153: GNG TiltStop_101037 | S153: gscope-cdu-1 | T153: 101037
B154: 101037 | C154: gscope-cdu-1 | D154: G-Core | E154: 101037 | G154: GeVi ZoomIn_101037 | H154: Telemetry | I154: ZoomIn | J154: 101037 | L154: GSC: Camera Control | M154: GSC ZoomIn | Q154: G-Core: Camera control | R154: GNG ZoomIn_101037 | S154: gscope-cdu-1 | T154: 101037
B155: 101037 | C155: gscope-cdu-1 | D155: G-Core | E155: 101037 | G155: GeVi ZoomOut_101037 | H155: Telemetry | I155: ZoomOut | J155: 101037 | L155: GSC: Camera Control | M155: GSC ZoomOut | Q155: G-Core: Camera control | R155: GNG ZoomOut_101037 | S155: gscope-cdu-1 | T155: 101037
B156: 101037 | C156: gscope-cdu-1 | D156: G-Core | E156: 101037 | G156: GeVi ZoomStop_101037 | H156: Telemetry | I156: ZoomStop | J156: 101037 | L156: GSC: Camera Control | M156: GSC ZoomStop | Q156: G-Core: Camera control | R156: GNG ZoomStop_101037 | S156: gscope-cdu-1 | T156: 101037
B157: 101037 | C157: gscope-cdu-1 | D157: G-Core | E157: 101037 | G157: GeVi FocusFar 0_101037 | H157: Telemetry | I157: FocusFar | J157: 101037 | K157: 0 | L157: GSC: Camera Control | M157: GSC FocusFar 128 | P157: 128 | Q157: G-Core: Camera control | R157: GNG FocusFar 128_101037 | S157: gscope-cdu-1 | T157: 101037 | U157: 128
B158: 101037 | C158: gscope-cdu-1 | D158: G-Core | E158: 101037 | G158: GeVi FocusNear 0_101037 | H158: Telemetry | I158: FocusNear | J158: 101037 | K158: 0 | L158: GSC: Camera Control | M158: GSC FocusNear 128 | P158: 128 | Q158: G-Core: Camera control | R158: GNG FocusNear 128_101037 | S158: gscope-cdu-1 | T158: 101037 | U158: 128
B159: 101037 | C159: gscope-cdu-1 | D159: G-Core | E159: 101037 | G159: GeVi FocusStop 0_101037 | H159: Telemetry | I159: FocusStop | J159: 101037 | K159: 0 | L159: GSC: Camera Control | M159: GSC FocusStop 128 | P159: 128 | Q159: G-Core: Camera control | R159: GNG FocusStop 128_101037 | S159: gscope-cdu-1 | T159: 101037 | U159: 128
B160: 101037 | C160: gscope-cdu-1 | D160: G-Core | E160: 101037 | G160: GeVi DefaultPosCalUp_101037 | H160: Telemetry | I160: DefaultPosCalUp | J160: 101037 | L160: GSC: Camera Control | M160: GSC DefaultPosCalUp | Q160: G-Core: Camera control | R160: GNG DefaultPosCalUp_101037 | S160: gscope-cdu-1 | T160: 101037
B161: 101037 | C161: gscope-cdu-1 | D161: G-Core | E161: 101037 | G161: GeVi DefaultPosClear_101037 | H161: Telemetry | I161: DefaultPosClear | J161: 101037 | L161: GSC: Camera Control | M161: GSC DefaultPosClear | Q161: G-Core: Camera control | R161: GNG DefaultPosClear_101037 | S161: gscope-cdu-1 | T161: 101037
B162: 101037 | C162: gscope-cdu-1 | D162: G-Core | E162: 101037 | G162: GeVi DefaultPosSave_101037 | H162: Telemetry | I162: DefaultPosSave | J162: 101037 | L162: GSC: Camera Control | M162: GSC DefaultPosSave | Q162: G-Core: Camera control | R162: GNG DefaultPosSave_101037 | S162: gscope-cdu-1 | T162: 101037
B163: 101037 | C163: gscope-cdu-1 | D163: G-Core | E163: 101037 | G163: GeVi IrisClose_101037 | H163: Telemetry | I163: IrisClose | J163: 101037 | L163: GSC: Camera Control | M163: GSC IrisClose | Q163: G-Core: Camera control | R163: GNG IrisClose_101037 | S163: gscope-cdu-1 | T163: 101037
B164: 101037 | C164: gscope-cdu-1 | D164: G-Core | E164: 101037 | G164: GeVi IrisOpen_101037 | H164: Telemetry | I164: IrisOpen | J164: 101037 | L164: GSC: Camera Control | M164: GSC IrisOpen | Q164: G-Core: Camera control | R164: GNG IrisOpen_101037 | S164: gscope-cdu-1 | T164: 101037
B165: 101037 | C165: gscope-cdu-1 | D165: G-Core | E165: 101037 | G165: GeVi IrisStop_101037 | H165: Telemetry | I165: IrisStop | J165: 101037 | L165: GSC: Camera Control | M165: GSC IrisStop | Q165: G-Core: Camera control | R165: GNG IrisStop_101037 | S165: gscope-cdu-1 | T165: 101037
B166: 101044 | C166: gscope-cdu-1 | D166: G-Core | E166: 101044 | G166: GeVi PanLeft_101044 | H166: Telemetry | I166: PanLeft | J166: 101044 | L166: GSC: Camera Control | M166: GSC PanLeft | Q166: G-Core: Camera control | R166: GNG PanLeft_101044 | S166: gscope-cdu-1 | T166: 101044
B167: 101044 | C167: gscope-cdu-1 | D167: G-Core | E167: 101044 | G167: GeVi PanRight_101044 | H167: Telemetry | I167: PanRight | J167: 101044 | L167: GSC: Camera Control | M167: GSC PanRight | Q167: G-Core: Camera control | R167: GNG PanRight_101044 | S167: gscope-cdu-1 | T167: 101044
B168: 101044 | C168: gscope-cdu-1 | D168: G-Core | E168: 101044 | G168: GeVi PanStop_101044 | H168: Telemetry | I168: PanStop | J168: 101044 | L168: GSC: Camera Control | M168: GSC PanStop | Q168: G-Core: Camera control | R168: GNG PanStop_101044 | S168: gscope-cdu-1 | T168: 101044
B169: 101044 | C169: gscope-cdu-1 | D169: G-Core | E169: 101044 | G169: GeVi TiltDown_101044 | H169: Telemetry | I169: TiltDown | J169: 101044 | L169: GSC: Camera Control | M169: GSC TiltDown | Q169: G-Core: Camera control | R169: GNG TiltDown_101044 | S169: gscope-cdu-1 | T169: 101044
B170: 101044 | C170: gscope-cdu-1 | D170: G-Core | E170: 101044 | G170: GeVi TiltUp_101044 | H170: Telemetry | I170: TiltUp | J170: 101044 | L170: GSC: Camera Control | M170: GSC TiltUp | Q170: G-Core: Camera control | R170: GNG TiltUp_101044 | S170: gscope-cdu-1 | T170: 101044
B171: 101044 | C171: gscope-cdu-1 | D171: G-Core | E171: 101044 | G171: GeVi TiltStop_101044 | H171: Telemetry | I171: TiltStop | J171: 101044 | L171: GSC: Camera Control | M171: GSC TiltStop | Q171: G-Core: Camera control | R171: GNG TiltStop_101044 | S171: gscope-cdu-1 | T171: 101044
B172: 101044 | C172: gscope-cdu-1 | D172: G-Core | E172: 101044 | G172: GeVi ZoomIn_101044 | H172: Telemetry | I172: ZoomIn | J172: 101044 | L172: GSC: Camera Control | M172: GSC ZoomIn | Q172: G-Core: Camera control | R172: GNG ZoomIn_101044 | S172: gscope-cdu-1 | T172: 101044
B173: 101044 | C173: gscope-cdu-1 | D173: G-Core | E173: 101044 | G173: GeVi ZoomOut_101044 | H173: Telemetry | I173: ZoomOut | J173: 101044 | L173: GSC: Camera Control | M173: GSC ZoomOut | Q173: G-Core: Camera control | R173: GNG ZoomOut_101044 | S173: gscope-cdu-1 | T173: 101044
B174: 101044 | C174: gscope-cdu-1 | D174: G-Core | E174: 101044 | G174: GeVi ZoomStop_101044 | H174: Telemetry | I174: ZoomStop | J174: 101044 | L174: GSC: Camera Control | M174: GSC ZoomStop | Q174: G-Core: Camera control | R174: GNG ZoomStop_101044 | S174: gscope-cdu-1 | T174: 101044
B175: 101044 | C175: gscope-cdu-1 | D175: G-Core | E175: 101044 | G175: GeVi FocusFar 0_101044 | H175: Telemetry | I175: FocusFar | J175: 101044 | K175: 0 | L175: GSC: Camera Control | M175: GSC FocusFar 128 | P175: 128 | Q175: G-Core: Camera control | R175: GNG FocusFar 128_101044 | S175: gscope-cdu-1 | T175: 101044 | U175: 128
B176: 101044 | C176: gscope-cdu-1 | D176: G-Core | E176: 101044 | G176: GeVi FocusNear 0_101044 | H176: Telemetry | I176: FocusNear | J176: 101044 | K176: 0 | L176: GSC: Camera Control | M176: GSC FocusNear 128 | P176: 128 | Q176: G-Core: Camera control | R176: GNG FocusNear 128_101044 | S176: gscope-cdu-1 | T176: 101044 | U176: 128
B177: 101044 | C177: gscope-cdu-1 | D177: G-Core | E177: 101044 | G177: GeVi FocusStop 0_101044 | H177: Telemetry | I177: FocusStop | J177: 101044 | K177: 0 | L177: GSC: Camera Control | M177: GSC FocusStop 128 | P177: 128 | Q177: G-Core: Camera control | R177: GNG FocusStop 128_101044 | S177: gscope-cdu-1 | T177: 101044 | U177: 128
B178: 101044 | C178: gscope-cdu-1 | D178: G-Core | E178: 101044 | G178: GeVi DefaultPosCalUp_101044 | H178: Telemetry | I178: DefaultPosCalUp | J178: 101044 | L178: GSC: Camera Control | M178: GSC DefaultPosCalUp | Q178: G-Core: Camera control | R178: GNG DefaultPosCalUp_101044 | S178: gscope-cdu-1 | T178: 101044
B179: 101044 | C179: gscope-cdu-1 | D179: G-Core | E179: 101044 | G179: GeVi DefaultPosClear_101044 | H179: Telemetry | I179: DefaultPosClear | J179: 101044 | L179: GSC: Camera Control | M179: GSC DefaultPosClear | Q179: G-Core: Camera control | R179: GNG DefaultPosClear_101044 | S179: gscope-cdu-1 | T179: 101044
B180: 101044 | C180: gscope-cdu-1 | D180: G-Core | E180: 101044 | G180: GeVi DefaultPosSave_101044 | H180: Telemetry | I180: DefaultPosSave | J180: 101044 | L180: GSC: Camera Control | M180: GSC DefaultPosSave | Q180: G-Core: Camera control | R180: GNG DefaultPosSave_101044 | S180: gscope-cdu-1 | T180: 101044
B181: 101044 | C181: gscope-cdu-1 | D181: G-Core | E181: 101044 | G181: GeVi IrisClose_101044 | H181: Telemetry | I181: IrisClose | J181: 101044 | L181: GSC: Camera Control | M181: GSC IrisClose | Q181: G-Core: Camera control | R181: GNG IrisClose_101044 | S181: gscope-cdu-1 | T181: 101044
B182: 101044 | C182: gscope-cdu-1 | D182: G-Core | E182: 101044 | G182: GeVi IrisOpen_101044 | H182: Telemetry | I182: IrisOpen | J182: 101044 | L182: GSC: Camera Control | M182: GSC IrisOpen | Q182: G-Core: Camera control | R182: GNG IrisOpen_101044 | S182: gscope-cdu-1 | T182: 101044
B183: 101044 | C183: gscope-cdu-1 | D183: G-Core | E183: 101044 | G183: GeVi IrisStop_101044 | H183: Telemetry | I183: IrisStop | J183: 101044 | L183: GSC: Camera Control | M183: GSC IrisStop | Q183: G-Core: Camera control | R183: GNG IrisStop_101044 | S183: gscope-cdu-1 | T183: 101044
B184: 101049 | C184: gscope-cdu-1 | D184: G-Core | E184: 101049 | G184: GeVi PanLeft_101049 | H184: Telemetry | I184: PanLeft | J184: 101049 | L184: GSC: Camera Control | M184: GSC PanLeft | Q184: G-Core: Camera control | R184: GNG PanLeft_101049 | S184: gscope-cdu-1 | T184: 101049
B185: 101049 | C185: gscope-cdu-1 | D185: G-Core | E185: 101049 | G185: GeVi PanRight_101049 | H185: Telemetry | I185: PanRight | J185: 101049 | L185: GSC: Camera Control | M185: GSC PanRight | Q185: G-Core: Camera control | R185: GNG PanRight_101049 | S185: gscope-cdu-1 | T185: 101049
B186: 101049 | C186: gscope-cdu-1 | D186: G-Core | E186: 101049 | G186: GeVi PanStop_101049 | H186: Telemetry | I186: PanStop | J186: 101049 | L186: GSC: Camera Control | M186: GSC PanStop | Q186: G-Core: Camera control | R186: GNG PanStop_101049 | S186: gscope-cdu-1 | T186: 101049
B187: 101049 | C187: gscope-cdu-1 | D187: G-Core | E187: 101049 | G187: GeVi TiltDown_101049 | H187: Telemetry | I187: TiltDown | J187: 101049 | L187: GSC: Camera Control | M187: GSC TiltDown | Q187: G-Core: Camera control | R187: GNG TiltDown_101049 | S187: gscope-cdu-1 | T187: 101049
B188: 101049 | C188: gscope-cdu-1 | D188: G-Core | E188: 101049 | G188: GeVi TiltUp_101049 | H188: Telemetry | I188: TiltUp | J188: 101049 | L188: GSC: Camera Control | M188: GSC TiltUp | Q188: G-Core: Camera control | R188: GNG TiltUp_101049 | S188: gscope-cdu-1 | T188: 101049
B189: 101049 | C189: gscope-cdu-1 | D189: G-Core | E189: 101049 | G189: GeVi TiltStop_101049 | H189: Telemetry | I189: TiltStop | J189: 101049 | L189: GSC: Camera Control | M189: GSC TiltStop | Q189: G-Core: Camera control | R189: GNG TiltStop_101049 | S189: gscope-cdu-1 | T189: 101049
B190: 101049 | C190: gscope-cdu-1 | D190: G-Core | E190: 101049 | G190: GeVi ZoomIn_101049 | H190: Telemetry | I190: ZoomIn | J190: 101049 | L190: GSC: Camera Control | M190: GSC ZoomIn | Q190: G-Core: Camera control | R190: GNG ZoomIn_101049 | S190: gscope-cdu-1 | T190: 101049
B191: 101049 | C191: gscope-cdu-1 | D191: G-Core | E191: 101049 | G191: GeVi ZoomOut_101049 | H191: Telemetry | I191: ZoomOut | J191: 101049 | L191: GSC: Camera Control | M191: GSC ZoomOut | Q191: G-Core: Camera control | R191: GNG ZoomOut_101049 | S191: gscope-cdu-1 | T191: 101049
B192: 101049 | C192: gscope-cdu-1 | D192: G-Core | E192: 101049 | G192: GeVi ZoomStop_101049 | H192: Telemetry | I192: ZoomStop | J192: 101049 | L192: GSC: Camera Control | M192: GSC ZoomStop | Q192: G-Core: Camera control | R192: GNG ZoomStop_101049 | S192: gscope-cdu-1 | T192: 101049
B193: 101049 | C193: gscope-cdu-1 | D193: G-Core | E193: 101049 | G193: GeVi FocusFar 0_101049 | H193: Telemetry | I193: FocusFar | J193: 101049 | K193: 0 | L193: GSC: Camera Control | M193: GSC FocusFar 128 | P193: 128 | Q193: G-Core: Camera control | R193: GNG FocusFar 128_101049 | S193: gscope-cdu-1 | T193: 101049 | U193: 128
B194: 101049 | C194: gscope-cdu-1 | D194: G-Core | E194: 101049 | G194: GeVi FocusNear 0_101049 | H194: Telemetry | I194: FocusNear | J194: 101049 | K194: 0 | L194: GSC: Camera Control | M194: GSC FocusNear 128 | P194: 128 | Q194: G-Core: Camera control | R194: GNG FocusNear 128_101049 | S194: gscope-cdu-1 | T194: 101049 | U194: 128
B195: 101049 | C195: gscope-cdu-1 | D195: G-Core | E195: 101049 | G195: GeVi FocusStop 0_101049 | H195: Telemetry | I195: FocusStop | J195: 101049 | K195: 0 | L195: GSC: Camera Control | M195: GSC FocusStop 128 | P195: 128 | Q195: G-Core: Camera control | R195: GNG FocusStop 128_101049 | S195: gscope-cdu-1 | T195: 101049 | U195: 128
B196: 101049 | C196: gscope-cdu-1 | D196: G-Core | E196: =B196 -> 101049 | G196: GeVi DefaultPosCalUp_101049 | H196: Telemetry | I196: DefaultPosCalUp | J196: =E196 -> 101049 | L196: GSC: Camera Control | M196: GSC DefaultPosCalUp | N196: =IF(D196="G-Core","",C196) ->  | O196: =IF(D196="G-Core","",B196) ->  | Q196: G-Core: Camera control | R196: GNG DefaultPosCalUp_101049 | S196: =IF(D196="G-Core",C196,"") -> gscope-cdu-1 | T196: =IF(D196="G-Core",B196,"") -> 101049
B197: 101049 | C197: gscope-cdu-1 | D197: G-Core | E197: 101049 | G197: =CONCATENATE("GeVi ",I197,IF(ISNUMBER(FIND("Focus",I197))," 0_","_"),E197) -> GeVi DefaultPosClear_101049 | H197: Telemetry | I197: DefaultPosClear | J197: 101049 | K197: =IF(ISNUMBER(FIND("Focus",I197)),0,"") ->  | L197: GSC: Camera Control | M197: =CONCATENATE("GSC ",I197,IF(D197="G-Core",IF(ISNUMBER(FIND("Focus",I197))," 128",""),CONCATENATE(IF(ISNUMBER(FIND("Focus",I197))," 128_","_"),B197))) -> GSC DefaultPosClear | P197: =IF(ISNUMBER(FIND("Focus",I197)),128,"") ->  | Q197: G-Core: Camera control | R197: =CONCATENATE("GNG ",I197,IF(D197="G-Core",CONCATENATE(IF(ISNUMBER(FIND("Focus",I197))," 128_","_"),E197),IF(ISNUMBER(FIND("Focus",I197))," 128",""))) -> GNG DefaultPosClear_101049 | S197: gscope-cdu-1 | T197: 101049 | U197: =IF(ISNUMBER(FIND("Focus",I197)),128,"") -> 
B198: 101049 | C198: gscope-cdu-1 | D198: G-Core | E198: 101049 | G198: GeVi DefaultPosSave_101049 | H198: Telemetry | I198: DefaultPosSave | J198: 101049 | L198: GSC: Camera Control | M198: GSC DefaultPosSave | Q198: G-Core: Camera control | R198: GNG DefaultPosSave_101049 | S198: gscope-cdu-1 | T198: 101049
B199: 101049 | C199: gscope-cdu-1 | D199: G-Core | E199: 101049 | G199: GeVi IrisClose_101049 | H199: Telemetry | I199: IrisClose | J199: 101049 | L199: GSC: Camera Control | M199: GSC IrisClose | Q199: G-Core: Camera control | R199: GNG IrisClose_101049 | S199: gscope-cdu-1 | T199: 101049
B200: 101049 | C200: gscope-cdu-1 | D200: G-Core | E200: 101049 | G200: GeVi IrisOpen_101049 | H200: Telemetry | I200: IrisOpen | J200: 101049 | L200: GSC: Camera Control | M200: GSC IrisOpen | Q200: G-Core: Camera control | R200: GNG IrisOpen_101049 | S200: gscope-cdu-1 | T200: 101049
B201: 101049 | C201: gscope-cdu-1 | D201: G-Core | E201: 101049 | G201: GeVi IrisStop_101049 | H201: Telemetry | I201: IrisStop | J201: 101049 | L201: GSC: Camera Control | M201: GSC IrisStop | Q201: G-Core: Camera control | R201: GNG IrisStop_101049 | S201: gscope-cdu-1 | T201: 101049
... 4299 more rows

Sheet Servers
B2: Hostname | C2: Typ | D2: IP server | E2: Username | F2: Password
B3: TSK_JS_I | C3: GeViScope | D3: 10.240.30.31 | E3: sysadmin | F3: masterkey
B4: TSK_JS_III | C4: GeViScope | D4: 10.240.30.33 | E4: sysadmin | F4: masterkey
B5: TSK_JS_IV | C5: GeViScope | D5: 10.240.30.34 | E5: sysadmin | F5: masterkey
B6: TSK_JS_V | C6: GeViScope | D6: 10.240.30.35 | E6: sysadmin | F6: masterkey
B7: TSK_JS_VI | C7: GeViScope | D7: 10.240.30.36 | E7: sysadmin | F7: masterkey
B8: GCE-BL-TGC1A1 | C8: G-Core | D8: 10.240.37.61 | E8: sysadmin | F8: masterkey
B9: GCE-BL-TGC1A2 | C9: G-Core | D9: 10.240.37.62 | E9: sysadmin | F9: masterkey
B10: GCE-BL-TGC1B3 | C10: G-Core | D10: 10.240.37.63 | E10: sysadmin | F10: masterkey
B11: GCE-BL-TGC1B4 | C11: G-Core | D11: 10.240.37.64 | E11: sysadmin | F11: masterkey
B12: GCE-BL-TGC3A5 | C12: G-Core | D12: 10.240.37.65 | E12: sysadmin | F12: masterkey
B13: GCE-BL-TGC3A6 | C13: G-Core | D13: 10.240.37.66 | E13: sysadmin | F13: masterkey
B14: GCE-BL-TGC3A7 | C14: G-Core | D14: 10.240.37.67 | E14: sysadmin | F14: masterkey
B15: GCE-BL-TGC3A8 | C15: G-Core | D15: 10.240.37.68 | E15: sysadmin | F15: masterkey
B16: GCE-BL-TGC3B9 | C16: G-Core | D16: 10.240.37.69 | E16: sysadmin | F16: masterkey
B17: GCE-BL-TGC3B10 | C17: G-Core | D17: 10.240.37.70 | E17: sysadmin | F17: masterkey
B18: GCE-BL-TGC3B11 | C18: G-Core | D18: 10.240.37.71 | E18: sysadmin | F18: masterkey
B19: GCE-BL-TGC3B12 | C19: G-Core | D19: 10.240.37.72 | E19: sysadmin | F19: masterkey
B20: GCE-BL-TGC1FR | C20: G-Core | D20: 10.240.37.73 | E20: sysadmin | F20: masterkey
B21: GCE-BL-TGC3AFR | C21: G-Core | D21: 10.240.37.74 | E21: sysadmin | F21: masterkey
B22: GCE-BL-TGC3BFR | C22: G-Core | D22: 10.240.37.75 | E22: sysadmin | F22: masterkey
B23: GSCOPE-DC5-1 | C23: G-Core | D23: 10.240.140.21 | E23: sysadmin | F23: masterkey
B24: GSCOPE-DC5-2 | C24: G-Core | D24: 10.240.140.22 | E24: sysadmin | F24: masterkey
B25: GSCOPE-DC5-3 | C25: G-Core | D25: 10.240.140.23 | E25: sysadmin | F25: masterkey
B26: GSCOPE-DC5-4 | C26: G-Core | D26: 10.240.140.24 | E26: sysadmin | F26: masterkey
B27: GSCOPE-DC5-5 | C27: G-Core | D27: 10.240.140.25 | E27: sysadmin | F27: masterkey
B28: GSCOPE-DC5-6 | C28: G-Core | D28: 10.240.140.26 | E28: sysadmin | F28: masterkey
B29: GSCOPE-DC5-7 | C29: G-Core | D29: 10.240.140.27 | E29: sysadmin | F29: masterkey
B30: GSCOPE-DC5-8 | C30: G-Core | D30: 10.240.140.28 | E30: sysadmin | F30: masterkey
B31: G-SCOPE-PI-FLORENC | C31: G-Core | D31: 10.240.1.33 | E31: sysadmin | F31: masterkey
B32: GSCOPE-P6-9 | C32: G-Core | D32: 10.240.6.39 | E32: sysadmin | F32: masterkey
B33: GSCOPE-PII-8 | C33: G-Core | D33: 10.240.2.38 | E33: sysadmin | F33: masterkey
B34: GSCOPE-PI-6-M | C34: G-Core | D34: 10.240.1.43 | E34: sysadmin | F34: masterkey
B35: GSCOPE-PIII-13 | C35: G-Core | D35: 10.240.3.43 | E35: sysadmin | F35: masterkey
B36: GSCOPE-PIV-11 | C36: G-Core | D36: 10.240.4.41 | E36: sysadmin | F36: masterkey
B37: GSC-HN-1 | C37: GeViScope | D37: 10.240.1.31 | E37: sysadmin | F37: masterkey
B38: GSC-HN-2 | C38: GeViScope | D38: 10.240.1.32 | E38: sysadmin | F38: masterkey
B39: GSC - Praha 6 - 1 | C39: GeViScope | D39: 10.240.6.31 | E39: sysadmin | F39: masterkey
B40: GSC - Praha 6 - 2 | C40: GeViScope | D40: 10.240.6.32 | E40: sysadmin | F40: masterkey
B41: GSC - Praha 6 - 3 | C41: GeViScope | D41: 10.240.6.33 | E41: sysadmin | F41: masterkey
B42: GSC - Praha 6 - 8 | C42: GeViScope | D42: 10.240.6.38 | E42: sysadmin | F42: masterkey
B43: GSC-PI-SE | C43: GeViScope | D43: 10.240.1.41 | E43: sysadmin | F43: masterkey
B44: GSC - PI - Karluv most | C44: GeViScope | D44: 10.240.1.36 | E44: sysadmin | F44: masterkey
B45: GSC - Praha II - 1 | C45: GeViScope | D45: 10.240.2.31 | E45: sysadmin | F45: masterkey
B46: GSC - Praha II - 4 | C46: GeViScope | D46: 10.240.2.34 | E46: sysadmin | F46: masterkey
B47: GSC - Praha II - 7 | C47: GeViScope | D47: 10.240.2.37 | E47: sysadmin | F47: masterkey
B48: GSC - Praha III - 1 | C48: GeViScope | D48: 10.240.3.31 | E48: sysadmin | F48: masterkey
B49: GSC - Praha III - 10 | C49: GeViScope | D49: 10.240.3.40 | E49: sysadmin | F49: masterkey
B50: GSC - Praha III - 11 | C50: GeViScope | D50: 10.240.3.41 | E50: sysadmin | F50: masterkey
B51: GSC - Praha III - 3 | C51: GeViScope | D51: 10.240.3.33 | E51: sysadmin | F51: masterkey
B52: GSC - Praha III - 5 | C52: GeViScope | D52: 10.240.3.35 | E52: sysadmin | F52: masterkey
B53: GSC - Praha III - 8 | C53: GeViScope | D53: 10.240.3.38 | E53: sysadmin | F53: masterkey
B54: GSC - Praha IV - 1 | C54: GeViScope | D54: 10.240.4.31 | E54: sysadmin | F54: masterkey
B55: GSC - Praha IV - 2 | C55: GeViScope | D55: 10.240.4.32 | E55: sysadmin | F55: masterkey
B56: GSC - Praha IV - 5 | C56: GeViScope | D56: 10.240.4.35 | E56: sysadmin | F56: masterkey
B57: GSC - Praha IV - 9 | C57: GeViScope | D57: 10.240.4.39 | E57: sysadmin | F57: masterkey
B58: GSC - UMR - 1 | C58: GeViScope | D58: 10.240.34.31 | E58: sysadmin | F58: masterkey
B59: GSC - UMR - 2 | C59: GeViScope | D59: 10.240.34.32 | E59: sysadmin | F59: masterkey
B60: gscope-cdu-1 | C60: G-Core | D60: 10.240.130.79 | E60: sysadmin | F60: masterkey
B61: gscope-cdu-2 | C61: G-Core | D61: 10.240.130.80 | E61: sysadmin | F61: masterkey
B62: gscope-cdu-3 | C62: G-Core | D62: 10.240.130.81 | E62: sysadmin | F62: masterkey
B63: GST - CDU - 11 | C63: GeViScope | D63: 10.240.130.61 | E63: sysadmin | F63: masterkey
B64: GST - CDU - 12 | C64: GeViScope | D64: 10.240.130.62 | E64: sysadmin | F64: masterkey
B65: GST - CDU - 13 | C65: GeViScope | D65: 10.240.130.63 | E65: sysadmin | F65: masterkey
B66: GST - CDU - 14 | C66: GeViScope | D66: 10.240.130.64 | E66: sysadmin | F66: masterkey
B67: GST - CDU - 7 | C67: GeViScope | D67: 10.240.130.57 | E67: sysadmin | F67: masterkey
B68: GST - CDU - 8 | C68: GeViScope | D68: 10.240.130.58 | E68: sysadmin | F68: masterkey
B69: TSK_OPD1_1 | C69: GeViScope | D69: 10.240.41.21 | E69: sysadmin | F69: masterkey
B70: TSK_OPD1_2 | C70: GeViScope | D70: 10.240.41.22 | E70: sysadmin | F70: masterkey
B71: TSK_OPD1_3 | C71: GeViScope | D71: 10.240.41.23 | E71: sysadmin | F71: masterkey
B72: TSK_OPD1_4 | C72: GeViScope | D72: 10.240.41.24 | E72: sysadmin | F72: masterkey
B73: TSK_OPD4_1 | C73: GeViScope | D73: 10.240.30.37 | E73: sysadmin | F73: masterkey
B74: TSK_OPD4_2 | C74: GeViScope | D74: 10.240.30.38 | E74: sysadmin | F74: masterkey
B75: TSK_OPD4_3 | C75: GeViScope | D75: 10.240.30.39 | E75: sysadmin | F75: masterkey
B76: TSK_GST_11 | C76: G-Core | D76: 10.240.30.40 | E76: sysadmin | F76: masterkey
B77: GST-ATM | C77: G-Core | D77: 10.240.38.41 | E77: sysadmin | F77: masterkey
B78: GST-HDRU-1 | C78: G-Core | D78: 10.240.46.41 | E78: sysadmin | F78: masterkey
B79: GST-HDRU-2 | C79: G-Core | D79: 10.240.46.42 | E79: sysadmin | F79: masterkey
B80: GST-LAT | C80: G-Core | D80: 10.240.54.61 | E80: sysadmin | F80: masterkey
B81: GST-ODRU | C81: G-Core | D81: 10.240.38.61 | E81: sysadmin | F81: masterkey
B82: GST-SAT-1 | C82: G-Core | D82: 10.240.39.41 | E82: sysadmin | F82: masterkey
B83: GST-SAT-2 | C83: G-Core | D83: 10.240.39.42 | E83: sysadmin | F83: masterkey
B84: GST-TAT | C84: G-Core | D84: 10.240.53.21 | E84: sysadmin | F84: masterkey
B85: GST-ZAT | C85: G-Core | D85: 10.240.38.81 | E85: sysadmin | F85: masterkey
B20434: CAMEA-3 | C20434: GeViScope | D20434: =VLOOKUP(C20434,Servers!B:C,2,FALSE) -> 
B20435: CAMEA-4 | C20435: GeViScope
B20436: CAMEA-5 | C20436: GeViScope
B20437: CAMEA-6 | C20437: GeViScope
B20438: GCE-BL-TGC1A1 | C20438: G-Core
B20439: GCE-BL-TGC1A2 | C20439: G-Core
B20440: GCE-BL-TGC1B3 | C20440: G-Core
B20441: GCE-BL-TGC1B4 | C20441: G-Core
B20442: GCE-BL-TGC3A5 | C20442: G-Core
B20443: GCE-BL-TGC3A6 | C20443: G-Core
B20444: GCE-BL-TGC3A7 | C20444: G-Core
B20445: GCE-BL-TGC3A8 | C20445: G-Core
B20446: GCE-BL-TGC3B9 | C20446: G-Core
B20447: GCE-BL-TGC3B10 | C20447: G-Core
B20448: GCE-BL-TGC3B11 | C20448: G-Core
B20449: GCE-BL-TGC3B12 | C20449: G-Core
B20450: GCE-BL-TGC1FR | C20450: G-Core
B20451: GCE-BL-TGC3AFR | C20451: G-Core
B20452: GCE-BL-TGC3BFR | C20452: G-Core
B20453: G-Core - DC5 - 1 | C20453: G-Core
B20454: G-Core - DC5 - 2 | C20454: G-Core
B20455: G-Core - DC5 - 3 | C20455: G-Core
B20456: G-Core - DC5 - 4 | C20456: G-Core
B20457: G-Core - DC5 - 5 | C20457: G-Core
B20458: G-Core - DC5 - 6 | C20458: G-Core
B20459: G-Core - DC5 - 7 | C20459: G-Core
B20460: G-Core - DC5 - 8 | C20460: G-Core
B20461: G-Core - Florenc | C20461: G-Core
B20462: G-Core - P6 - 9 | C20462: G-Core
B20463: G-Core - PII - 8 | C20463: G-Core
B20464: G-Core - Praha I - 6 | C20464: G-Core
B20465: G-Core - Praha III - 13 | C20465: G-Core
B20466: G-Core - Praha IV - 11 | C20466: G-Core
B20467: Geviscope - Hlavní nádraží 1 | C20467: GeViScope
B20468: Geviscope - Hlavní nádraží 2 | C20468: GeViScope
B20469: GSC - Praha 6 - 1 | C20469: GeViScope
B20470: GSC - Praha 6 - 2 | C20470: GeViScope
B20471: GSC - Praha 6 - 3 | C20471: GeViScope
B20472: GSC - Praha 6 - 8 | C20472: GeViScope
B20473: GSC - Praha I - 11 | C20473: GeViScope
B20474: GSC - Praha I - 6 | C20474: GeViScope
B20475: GSC - Praha II - 1 | C20475: GeViScope
B20476: GSC - Praha II - 4 | C20476: GeViScope
B20477: GSC - Praha II - 7 | C20477: GeViScope
B20478: GSC - Praha III - 1 | C20478: GeViScope
B20479: GSC - Praha III - 10 | C20479: GeViScope
B20480: GSC - Praha III - 11 | C20480: GeViScope
B20481: GSC - Praha III - 3 | C20481: GeViScope
B20482: GSC - Praha III - 5 | C20482: GeViScope
B20483: GSC - Praha III - 8 | C20483: GeViScope
B20484: GSC - Praha IV - 1 | C20484: GeViScope
B20485: GSC - Praha IV - 2 | C20485: GeViScope
B20486: GSC - Praha IV - 5 | C20486: GeViScope
B20487: GSC - Praha IV - 9 | C20487: GeViScope
B20488: GSC - UMR - 1 | C20488: GeViScope
B20489: GSC - UMR - 2 | C20489: GeViScope
B20490: gscope-cdu-1 | C20490: G-Core
B20491: gscope-cdu-2 | C20491: G-Core
B20492: gscope-cdu-3 | C20492: G-Core
B20493: GST - CDU - 11 | C20493: GeViScope
B20494: GST - CDU - 12 | C20494: GeViScope
B20495: GST - CDU - 13 | C20495: GeViScope
B20496: GST - CDU - 14 | C20496: GeViScope
B20497: GST - CDU - 7 | C20497: GeViScope
B20498: GST - CDU - 8 | C20498: GeViScope
B20499: OPD1-1 | C20499: GeViScope
B20500: OPD1-2 | C20500: GeViScope
B20501: OPD1-3 | C20501: GeViScope
B20502: OPD1-4 | C20502: GeViScope
B20503: OPD4-1 | C20503: GeViScope
B20504: OPD4-2 | C20504: GeViScope
B20505: OPD4-3 | C20505: GeViScope
B20506: CAMEA-11 | C20506: G-Core
B20507: TSK-ATM | C20507: G-Core
B20508: TSK-HDRU-1 | C20508: G-Core
B20509: TSK-HDRU-2 | C20509: G-Core
B20510: TSK-LAT | C20510: G-Core
B20511: TSK-ODRU | C20511: G-Core
B20512: TSK-SAT-1 | C20512: G-Core
B20513: TSK-SAT-2 | C20513: G-Core
B20514: TSK-TAT | C20514: G-Core
B20515: TSK-ZAT | C20515: G-Core
